Cogmind - Beta 12 @@@ ROGUE MODE // 2023.03.08 @ 11:34:17 Player: Inkie Result: Destroyed by Y-45 Defender with Beam Rifle Performance ------------- Evolutions (0) 0 Regions Visited (2) 400 Robots Destroyed (27) 135 Value Destroyed (631) 631 Prototype IDs (0) 0 Alien Tech Used (0) 0 Bonus (0) 0 TOTAL SCORE: 1166 Bonus ------- None Cogmind --------- Core Integrity 0/250 Matter 217/300 Energy 99/100 System Corruption 0% Temperature Cool (9) Movement Rolling (105) Ox1 Location -10/Mines Parts ------- > --- POWER (1) -------- (None) > --- PROPULSION (2) --- Armored Wheel Armored Wheel > --- UTILITY (2) ------ Improved Heat Sink High-capacity Storage Unit > --- WEAPON (2) ------- Autogun > --- INVENTORY (20) --- Ion Engine Armored Wheel Armored Wheel Small Matter Pod (39) High-capacity Matter Pod (200) Structural Scanner Machine Analyzer Improved Targeting Computer Improved Targeting Computer Improved Targeting Computer Shield Generator Shield Generator Hacking Suite Particle Gun Autogun Autogun Datajack Hammer Peak State ------------ > --- POWER ------------ Ion Engine > --- PROPULSION ------- Armored Wheel Armored Wheel > --- UTILITY ---------- Improved Heat Sink High-capacity Storage Unit > --- WEAPON ----------- Autogun Hammer > --- INVENTORY -------- Ion Engine Armored Wheel Armored Wheel High-capacity Matter Pod Structural Scanner Machine Analyzer Improved Targeting Computer Improved Targeting Computer Improved Targeting Computer Shield Generator Shield Generator Hacking Suite Autogun Autogun Autogun Datajack [Rating: 15] Favorites ----------- Power Ion Engine Engine Ion Engine Propulsion Light Treads Treads Light Treads Wheel Armored Wheel Utility Improved Heat Sink Device Improved Heat Sink Storage High-capacity Storage Unit Weapon Autogun Energy Gun Medium Laser Ballistic Gun Autogun Impact Weapon Hammer Build | -11 -10 -10 ------- Run | Jun Mat Min Slots Evolved . | . . . Power . | . . . Propulsion . | . . . Utility . | . . . Weapon . | . . . Parts Attached 16 | 6 9 1 Power 2 | 1 1 . Engine 2 | 1 1 . Core . | . . . Reactor . | . . . Propulsion 4 | 2 2 . Treads 2 | 2 . . Leg . | . . . Wheel 2 | . 2 . Hover . | . . . Flight . | . . . Utility 4 | 1 3 . Device 1 | . 1 . Storage 3 | 1 2 . Processor . | . . . Hackware . | . . . Protection . | . . . Artifact . | . . . Weapon 6 | 2 3 1 Energy Gun 1 | 1 . . Energy Cannon . | . . . Ballistic Gun 4 | 1 2 1 Ballistic Cannon . | . . . Launcher . | . . . Special Weapon . | . . . Impact Weapon 1 | . 1 . Slashing Weapon . | . . . Piercing Weapon . | . . . Special Melee Weapon . | . . . Unidentified Prototypes . | . . . Parts Lost 3 | . 1 2 Power 1 | . . 1 Propulsion . | . . . Utility . | . . . Weapon 2 | . 1 1 Highest Loss Streak 1 | . 1 1 To Critical Strikes . | . . . Average Slot Usage (%) 95 | . 95 92 Engine 13 | . 14 8 Treads 22 | . 26 . Wheel 5 | . 1 28 Device 10 | . 9 14 Storage 14 | . 14 14 Energy Gun 5 | . 6 . Ballistic Gun 21 | . 20 26 Naked Turns . | . . . Heaviest Build 52 | 14 52 52 Greatest Support 40 | 40 40 24 Greatest Overweight (x) 4 | . 4 2 Average Overweight (x) . | . . 1 Largest Inventory Capacity 20 | 8 20 20 Average Capacity 16 | 6 16 20 Most Carried 18 | 2 16 18 Average Carried 9 | 1 8 16 Final Capacity 20 | 8 20 20 Final Carried 18 | 2 16 18 Class Distribution -------------------- 100% | Mutant Dominant Class ---------------- Mutant | -10/Materials Mutant | -10/Mines Resources | -11 -10 -10 ----------- Run | Jun Mat Min Matter Collected 952 | 151 613 188 Remotely . | . . . Salvage Created 853 | . 572 281 Parts 61 | . 35 26 Haulers Intercepted . | . . . Recyclers Shooed . | . . . Parts Field Recycled . | . . . Retrieved Matter . | . . . Parts Self-Destructed . | . . . Prevented . | . . . Kills | -11 -10 -10 ------- Run | Jun Mat Min Combat Hostiles Destroyed 21 | . 12 9 Guns 21 | . 12 9 Classes Destroyed 6 | . 5 1 Recycler 2 | . 1 1 Mechanic 1 | . 1 . Operator 3 | . 3 . Swarmer 9 | . 3 6 Grunt 11 | . 9 2 Sentry 1 | . . 1 Best Kill Streak 4 | . 3 4 Combat Bots Only 3 | . 3 3 Max Kills in Single Turn 2 | . 1 2 Gunslinging . | . . . Exploded . | . . . Melee . | . . . Uniques/NPCs Destroyed . | . . . Combat | -11 -10 -10 -------- Run | Jun Mat Min Damage Taken 1081 | . 604 477 Core 258 | . 134 124 Absorbed by Shields . | . . . Core Remaining (%) 100 | 100 . . Volleys Fired 98 | . 63 35 Largest 2 | . 2 2 Hottest 70 | . 70 46 Shots Fired 169 | . 111 58 Gun 169 | . 111 58 Cannon . | . . . Launcher . | . . . Special . | . . . Kinetic 127 | . 69 58 Thermal 42 | . 42 . Explosive . | . . . Electromagnetic . | . . . Robot Hit Streak 23 | . 17 23 Robot Miss Streak 4 | . 4 2 Penetration Max . | . . . Secondary Targets 3 | . 3 . Max Gunslinging Chain 1 | . 1 . Shots Hit Robots 119 | . 74 45 Core Hits 41 | . 29 12 Critical Kills . | . . . Critical Parts Destroyed . | . . . Critical Strikes . | . . . Melee Attacks 1 | . 1 . Impact 1 | . 1 . Slashing . | . . . Piercing . | . . . Sneak Attacks . | . . . Combat Hostiles . | . . . Follow-up Attacks . | . . . Damage Inflicted 1663 | . 949 714 Guns 1663 | . 949 714 Cannons . | . . . Explosions . | . . . Melee . | . . . Ramming . | . . . Kinetic 1276 | . 562 714 Thermal 387 | . 387 . Explosive . | . . . Electromagnetic . | . . . Impact . | . . . Slashing . | . . . Piercing . | . . . Highest Corruption . | . . . Average Corruption . | . . . Corruption Purged . | . . . Corruption Blocked . | . . . Overload Shots . | . . . Overflow Damage . | . . . Projectiles . | . . . Explosions . | . . . Melee . | . . . Knockbacks . | . . . Impact . | . . . Kinetic . | . . . Secondary . | . . . Self-Inflicted Damage . | . . . Shots . | . . . Rammed . | . . . Targets Rammed . | . . . Kicked . | . . . Crushed . | . . . Highest Temperature 204 | . 204 11 Average Temperature 66 | . 66 7 Received Heat Transfer 483 | . 318 165 Effects 2 | . 2 . Interference 2 | . 2 . Siege Activations . | . . . Robots Corrupted . | . . . Combat Hostiles . | . . . Parts Fried . | . . . Impact Corruptions . | . . . Robots Melted . | . . . Combat Hostiles . | . . . Parts Melted 1 | . 1 . Heat Transferred 1147 | . 1147 . Parts Sabotaged . | . . . Parts Stolen . | . . . Parts Stripped . | . . . Power Chain Reactions . | . . . Missiles Intercepted . | . . . Alert | -11 -10 -10 ------- Run | Jun Mat Min Peak Influence 240 | . 240 226 Initial 6 | . . 6 Average 70 | . 58 143 Maximum Alert Level 1 | . 1 1 Low Security (%) 90 | 100 90 90 Level 1 9 | . 9 9 Level 2 . | . . . Level 3 . | . . . Level 4 . | . . . Level 5 . | . . . High Security . | . . . Max Security . | . . . Squads Dispatched 2 | . 2 . Investigation . | . . . Extermination . | . . . Reinforcement 2 | . 2 . Assault . | . . . Garrison . | . . . Intercept . | . . . Searches Triggered . | . . . Construction Impeded . | . . . Haulers Reinforced . | . . . Active Scanning Responses . | . . . Cargo Convoy Interrupts . | . . . Stealth | -11 -10 -10 --------- Run | Jun Mat Min Distress Signals 2 | . 2 . Communications Jammed . | . . . Distress Signals . | . . . Times Spotted 39 | . 29 10 Peak Tracking Total 4 | . 4 3 Tactical Retreats 1 | . 1 . Traps | -11 -10 -10 ------- Run | Jun Mat Min Traps Triggered . | . . . Indirectly . | . . . Trap Hack Attempts . | . . . Triggered . | . . . Disarmed . | . . . Reprogrammed . | . . . Reused . | . . . Traps Extracted . | . . . Installed . | . . . Triggered . | . . . Machines | -11 -10 -10 ---------- Run | Jun Mat Min Machines Disabled 2 | . 2 . Max in Single Turn 1 | . 1 . Machines Repaired . | . . . Machines Sabotaged . | . . . Overloaded Fab Kills . | . . . Hacking | -11 -10 -10 --------- Run | Jun Mat Min Machines Accessed 7 | . 6 1 Terminals 6 | . 5 1 Fabricators . | . . . Repair Stations 1 | . 1 . Recycling Units . | . . . Scanalyzers . | . . . Garrison Access . | . . . Total Hacks 15 | . 13 2 Successful 3 | . 2 1 Failed 12 | . 11 1 Catastrophic 2 | . 2 . Database Lockouts . | . . . Manual 12 | . 10 2 Terminals 12 | . 10 2 Fabricators . | . . . Repair Stations 3 | . 3 . Recycling Units . | . . . Scanalyzers . | . . . Garrison Access . | . . . Terminal Hacks 2 | . 1 1 Part Schematic 2 | . 1 1 Fabricator Hacks . | . . . Repair Station Hacks 1 | . 1 . Scan Component 1 | . 1 . Recycling Unit Hacks . | . . . Scanalyzer . | . . . Garrison Access Hacks . | . . . Unauthorized Hacks . | . . . Terminals . | . . . Fabricators . | . . . Repair Stations . | . . . Recycling Units . | . . . Scanalyzers . | . . . Garrison Access . | . . . Data Cores Recovered 1 | . 1 . Used . | . . . Hacking Detections 7 | . 6 1 Full Trace Events . | . . . Feedback Events . | . . . Feedback Blocked . | . . . Robot Schematics Acquired . | . . . Robots Built . | . . . Authchips . | . . . Time . | . . . Total Robot Build Rating . | . . . Part Schematics Acquired 1 | . 1 . Parts Built . | . . . Authchips . | . . . Time . | . . . Total Part Build Rating . | . . . Parts Repaired . | . . . Time . | . . . Parts Recycled . | . . . Recycled Matter . | . . . Retrieved Matter . | . . . Retrieved Components . | . . . Parts Scanalyzed . | . . . Part Schematics Acquired . | . . . Parts Damaged . | . . . Bothacking | -11 -10 -10 ------------ Run | Jun Mat Min Used RIF Installer . | . . . Robots Hacked . | . . . Non-combat . | . . . Combat . | . . . Robot Hacks Applied . | . . . Relay Couplers Released . | . . . Fabnet Peak Effective % . | . . . Robots Rewired . | . . . Allies Hacked . | . . . Hacks Repelled . | . . . Allies | -11 -10 -10 -------- Run | Jun Mat Min Total Allies . | . . . Largest Group . | . . . Highest-Rated Group . | . . . Highest-Rated Ally . | . . . Total Orders . | . . . Ally Attacks . | . . . Total Damage . | . . . Kills . | . . . Allies Corrupted . | . . . Allies Melted . | . . . Intel | -11 -10 -10 ------- Run | Jun Mat Min Robot Analysis Total . | . . . Derelict Logs Recovered 1 | . . 1 Drone Launches . | . . . Drone Recoveries . | . . . Exploration | -11 -10 -10 ------------- Run | Jun Mat Min Turns Passed 2385 | 75 1926 384 Spaces Moved 1142 | 43 875 224 Core 3 | 3 . . Treads 855 | 40 815 . Legs . | . . . Wheels 284 | . 60 224 Hover . | . . . Flight . | . . . Fastest Speed 50 | 50 120 105 Average Speed 174 | 152 190 113 Slowest Speed 240 | 160 240 120 Overloaded Moves . | . . . Propulsion Burnouts . | . . . Robots Hopped . | . . . Cave-ins Triggered . | . . . Exploration Rate (%) 45 | 4 88 44 Regions Visited 2 Branch Regions 1 Pre-discovered Areas 1 | . . 1 Known Exits Taken . | . . . Unknown Exits Taken 2 | 1 1 . Scrap Searched 1 | . . 1 Spaces Dug 1 | . 1 . Terrain Destroyed 1 | . 1 . Melee 1 | . 1 . Projectile . | . . . AOE . | . . . Terrain Rammed . | . . . Walls Destroyed . | . . . Machines Disabled . | . . . Actions | -11 -10 -10 --------- Run | Jun Mat Min Total 1379 | 50 1021 308 Wait 96 | . 50 46 Move 1140 | 42 874 224 Hop . | . . . Pick Up 21 | 2 17 2 Fast Attach 10 | 6 4 . Attach 2 | . 2 . Detach . | . . . Swap 4 | . 3 1 Drop 7 | . 7 . Fire 98 | . 63 35 Melee 1 | . 1 . Ram . | . . . Kick . | . . . Crush . | . . . Escape Stasis . | . . . Rewire . | . . . Trap . | . . . Miscellaneous . | . . . Route ------- -11/Junkyard -10/Materials (discovered 5 exits: [*Mat x3] / *Min x2) -10/Mines (discovered 2 exits: [*Mat x2]) History --------- Turn | Location | Event 8 | -11/Junkyard | Discovered new exit (range 15) 76 | -11/Junkyard | Entered Materials 317 | -10/Materials | Build established: Mutant 542 | -10/Materials | Discovered new exit (range 5) 555 | -10/Materials | Discovered new exit (range 15) 860 | -10/Materials | Discovered new exit (range 10) 940 | -10/Materials | Discovered new exit (range 12) 995 | -10/Materials | Discovered new exit (range 3) 1081 | -10/Materials | Core integrity fell below 50% 2002 | -10/Materials | Entered Mines 2011 | -10/Mines | Discovered new exit (range 5) 2205 | -10/Mines | Learned location of Recycling (-8) 2323 | -10/Mines | Found a hidden stash of uninstalled traps 2329 | -10/Mines | Discovered new exit (range 5) 2369 | -10/Mines | Core integrity fell below 20% 2386 | -10/Mines | Destroyed by Y-45 Defender with Beam Rifle Last Messages --------------- 02123_ Acquired 11 matter. 02205_ Acquired derelict log, extracted data. World map updated: -8/Recycling. 02229_ Ion Engine destroyed. 02235_ G-47 Trooper destroyed. 02246_ G-34 Mercenary destroyed. 02248_ Acquired 52 matter. 02252_ Acquired 7 matter. 02259_ Searching scrap... 02259_ Found Sml. Matter Pod. 02259_ Found 14 Matter. 02261_ Acquired Sml. Matter Pod. 02265_ Acquired Particle Gun. 02267_ Acquired 14 matter. 02278_ Acquired 25 matter. 02323_ A stash of uninstalled traps is collected here! 02329_ EXIT=FOUND 02353_ Critical hit (Burn: +37). 02358_ Y-45 Defender destroyed. 02365_ Autogun destroyed. Map ----- +----------------------------------------------------+ | | | | | | | | | | | | | | | | | | | | | ????????????????????????????????? | | ??????????#####?????######??????? | | ?????###### ####### ###????? | | ?????# ## #????? | | ?????# &&& ###### | | ?????# ### & | | ?????# #?##& | | ?????# ##?## ###### | | ?????# ##?# #####????# | | ?????# < ### #####????????# | | ?????## ## ##????????????# | | ??????## ### ##?????????????# | | ???????## ######??????????????# | | ???????## ###??????????????### | | ??##"??# ##????????????## | | ??#"" #@ ##????????#### | | ??#]! %/[ #???????## | | ??#][ =Y= #???????# | | ??#"" # ##???????# | | ??##"$## ##????????## | | ???###?## ##??????????# | | ????????# ##???????????## | | ????????## ##?????????????## | | ?????????###???????????????## | | ????????????????????????????## | | ?????????????????????????????## | | ??????????????????????????????### | | ????????????????????????????????? | | ????????????????????????????????? | | ????????????????????????????????? | | ????????????????????????????????? | | ????????????????????????????????? | | ????????????????????????????????? | | ????????????????????????????????? | | ????????????????????????????????? | | ????????????????????????????????? | | ????????????????????????????????? | | ????????????????????????????????? | | ????????????????????????????????? | | ????????????????????????????????? | +----------------------------------------------------+ Best States ------------- Heat Dissipation 39 Energy Generation 10 Energy Capacity 250 Matter Stores 300 Matter Capacity 300 Sight Range 16 Terrain Scan Density 10 Evasion (%) 40 Recoil Reduction 2 Item Schematics ----------------- Huge Storage Unit | -10/Materials | Hacked Robot Schematics ------------------ None Fabricated ------------ Nothing Alien Tech Used ----------------- None Achievements -------------- None Challenges ------------ None Game ------ Seed DeliveryLatentMachine Manual? 0 Play Time 00:10:59 Cumulative 411.3 hours Start 2023.03.08 @ 11:25:15 End 2023.03.08 @ 11:34:17 Sessions 1 Manual Loads 0 Difficulty Rogue Special Mode None Game No. 447 Rogue 438 Adventurer 8 Explorer 1 Win Type - Total 7 Types 4/1/2/0/0/0/0/0/0 Lore% 78 Gallery% 89 Achievement% 71 Wizard Run 0 Options --------- ASCII 0 Keyboard 0 Movement Numpad Keybinds 1 Fullscreen 2 Font 18/Terminus Map View 76x50 Tactical HUD 1 Map Filters NONE Filters NONE Steam 1 RUN: dc238544-d02e-4ba9-8954-f9bb9bca998a